Cogmind - Beta 13 @@@ ROGUE MODE // 2024.04.20 @ 19:09:48 Player: ToasterKoishi Result: Destroyed by D-53 Grenadier with Mini Grenade Launcher Performance ------------- Evolutions (0) 0 Regions Visited (2) 400 Robots Destroyed (14) 70 Value Destroyed (326) 326 Prototype IDs (5) 100 Alien Tech Used (0) 0 Bonus (0) 0 TOTAL SCORE: 896 Bonus ------- None Cogmind --------- Core Integrity 0/250 Matter 271/300 Energy 109/250 System Corruption 0% Temperature Cool (27) Movement Treading (240) Ox1 Location -10/Mines Parts ------- > --- POWER (1) -------- Ion Engine > --- PROPULSION (2) --- Light Treads Light Treads > --- UTILITY (2) ------ High-capacity Storage Unit > --- WEAPON (2) ------- Particle Gun Shotgun > --- INVENTORY (20) --- Light Treads Light Treads Light Treads Light Treads Light Treads Light Treads Wheel High-capacity Matter Pod (200) Signal Interpreter Beam Cannon Beam Cannon Shotgun Shotgun Grenade Launcher Peak State ------------ > --- POWER ------------ Ion Engine > --- PROPULSION ------- Light Treads Light Treads > --- UTILITY ---------- Heat Sink High-capacity Storage Unit > --- WEAPON ----------- Particle Gun Shotgun > --- INVENTORY -------- Ion Engine Light Treads Light Treads Light Treads Light Treads Light Treads Light Treads Wheel High-capacity Matter Pod Signal Interpreter Particle Gun Beam Cannon Beam Cannon Shotgun Shotgun Shotgun [Rating: 11] Favorites ----------- Power Ion Engine Engine Ion Engine Propulsion Light Treads Treads Light Treads Utility Heat Sink Device Heat Sink Storage Medium Storage Unit Weapon Particle Gun Energy Gun Particle Gun Energy Cannon Beam Cannon Ballistic Gun Shotgun Ballistic Cannon Light Cannon Build | -11 -10 -10 ------- Run | Yrd Mat Min Slots Evolved . | . . . Power . | . . . Propulsion . | . . . Utility . | . . . Weapon . | . . . Parts Attached 19 | 6 10 3 Power 3 | 1 1 1 Engine 3 | 1 1 1 Core . | . . . Reactor . | . . . Propulsion 4 | 2 2 . Treads 4 | 2 2 . Leg . | . . . Wheel . | . . . Hover . | . . . Flight . | . . . Utility 4 | 1 3 . Device 1 | . 1 . Storage 3 | 1 2 . Processor . | . . . Hackware . | . . . Protection . | . . . Artifact . | . . . Weapon 8 | 2 4 2 Energy Gun 3 | 1 1 1 Energy Cannon 1 | . 1 . Ballistic Gun 3 | 1 1 1 Ballistic Cannon 1 | . 1 . Launcher . | . . . Special Weapon . | . . . Impact Weapon . | . . . Slashing Weapon . | . . . Piercing Weapon . | . . . Special Melee Weapon . | . . . Unidentified Prototypes . | . . . Parts Lost 4 | . . 4 Power 1 | . . 1 Propulsion . | . . . Utility 1 | . . 1 Weapon 2 | . . 2 Highest Loss Streak 4 | . . 4 To Critical Strikes . | . . . Average Slot Usage (%) 97 | . 96 98 Engine 14 | . 14 14 Treads 28 | . 28 28 Device 11 | . 10 13 Storage 14 | . 14 14 Energy Gun 12 | . 11 13 Energy Cannon 1 | . 2 . Ballistic Gun 9 | . 8 14 Ballistic Cannon 4 | . 5 . Naked Turns . | . . . Heaviest Build 52 | 12 52 52 Greatest Support 40 | 40 40 40 Greatest Overweight (x) 3 | 3 1 1 Average Overweight (x) . | . . 1 Largest Inventory Capacity 20 | 8 20 20 Average Capacity 14 | 7 13 20 Most Carried 18 | 4 18 17 Average Carried 11 | 2 11 16 Final Capacity 20 | 8 20 20 Final Carried 17 | 4 17 14 Class Distribution -------------------- 100% | Mutant Dominant Class ---------------- Mutant | -10/Materials Mutant | -10/Mines Resources | -11 -10 -10 ----------- Run | Yrd Mat Min Matter Collected 672 | 246 398 28 Remotely . | . . . Salvage Created 416 | . 377 39 Parts 24 | . 20 4 Haulers Intercepted 1 | . 1 . Recyclers Shooed . | . . . Parts Field Recycled . | . . . Retrieved Matter . | . . . Parts Self-Destructed . | . . . Prevented . | . . . Kills | -11 -10 -10 ------- Run | Yrd Mat Min Combat Hostiles Destroyed 13 | . 10 3 Guns 9 | . 6 3 Cannons 4 | . 4 . Classes Destroyed 3 | . 3 . Hauler 1 | . 1 . Swarmer 6 | . 3 3 Grunt 7 | . 7 . Best Kill Streak 3 | . 3 3 Combat Bots Only 3 | . 3 3 Max Kills in Single Turn 1 | . 1 1 Gunslinging . | . . . Exploded . | . . . Melee . | . . . Uniques/NPCs Destroyed . | . . . Combat | -11 -10 -10 -------- Run | Yrd Mat Min Hostile Shots Fired 61 | . 34 27 Missed 12 | . 7 5 Damage Taken 951 | . 304 647 Core 266 | . 54 212 Absorbed by Shields . | . . . Core Remaining (%) 100 | 100 . . Volleys Fired 29 | . 24 5 Largest 2 | . 2 2 Hottest 100 | . 100 88 Shots Fired 58 | . 48 10 Gun 42 | . 32 10 Cannon 16 | . 16 . Launcher . | . . . Special . | . . . Kinetic 29 | . 24 5 Thermal 29 | . 24 5 Explosive . | . . . Electromagnetic . | . . . Robot Hit Streak 11 | . 11 5 Robot Miss Streak 4 | . 4 2 Penetration Max . | . . . Secondary Targets . | . . . Shots Hit Robots 36 | . 30 6 Core Hits 19 | . 14 5 Critical Kills . | . . . Critical Parts Destroyed . | . . . Critical Strikes . | . . . Melee Attacks . | . . . Impact . | . . . Slashing . | . . . Piercing . | . . . Sneak Attacks . | . . . Combat Hostiles . | . . . Follow-up Attacks . | . . . Damage Inflicted 595 | . 503 92 Guns 386 | . 294 92 Cannons 209 | . 209 . Explosions . | . . . Melee . | . . . Ramming . | . . . Kinetic 274 | . 241 33 Thermal 321 | . 262 59 Explosive . | . . . Electromagnetic . | . . . Impact . | . . . Slashing . | . . . Piercing . | . . . Highest Corruption . | . . . Average Corruption . | . . . Corruption Purged . | . . . Corruption Blocked . | . . . Overload Shots . | . . . Overflow Damage 8 | . 8 . Projectiles 8 | . 8 . Explosions . | . . . Melee . | . . . Knockbacks 3 | . 3 . Impact . | . . . Kinetic 3 | . 3 . Secondary . | . . . Self-Inflicted Damage . | . . . Shots . | . . . Rammed . | . . . Targets Rammed . | . . . Kicked . | . . . Crushed . | . . . Highest Temperature 170 | . 170 27 Average Temperature 49 | . 50 18 Received Heat Transfer 153 | . 153 . Siege Activations . | . . . Robots Corrupted . | . . . Combat Hostiles . | . . . Parts Fried . | . . . Impact Corruptions . | . . . Robots Melted . | . . . Combat Hostiles . | . . . Parts Melted 1 | . 1 . Heat Transferred 740 | . 592 148 Parts Sabotaged . | . . . Parts Stolen . | . . . Parts Stripped . | . . . Power Chain Reactions . | . . . Alert | -11 -10 -10 ------- Run | Yrd Mat Min Peak Influence 163 | . 163 75 Initial 5 | . . 5 Average 31 | . 33 30 Maximum Alert Level . | . . . Low Security (%) 100 | 100 100 100 Level 1 . | . . . Level 2 . | . . . Level 3 . | . . . Level 4 . | . . . Level 5 . | . . . High Security . | . . . Max Security . | . . . Squads Dispatched 1 | . 1 . Investigation . | . . . Extermination . | . . . Reinforcement 1 | . 1 . Assault . | . . . Garrison . | . . . Intercept . | . . . Searches Triggered . | . . . Construction Impeded . | . . . Haulers Reinforced . | . . . Active Scanning Responses . | . . . Cargo Convoy Interrupts . | . . . Stealth | -11 -10 -10 --------- Run | Yrd Mat Min Distress Signals 1 | . 1 . Communications Jammed . | . . . Distress Signals . | . . . Times Spotted 24 | . 19 5 Peak Tracking Total 3 | . 3 3 Tactical Retreats . | . . . Traps | -11 -10 -10 ------- Run | Yrd Mat Min Traps Triggered . | . . . Indirectly . | . . . Trap Hack Attempts . | . . . Triggered . | . . . Disarmed . | . . . Reprogrammed . | . . . Reused . | . . . Traps Extracted . | . . . Installed . | . . . Triggered . | . . . Machines | -11 -10 -10 ---------- Run | Yrd Mat Min Machines Disabled . | . . . Max in Single Turn . | . . . Machines Repaired . | . . . Machines Dismantled . | . . . Machines Sabotaged . | . . . Overloaded Fab Kills . | . . . Hacking | -11 -10 -10 --------- Run | Yrd Mat Min Machines Accessed 5 | . 5 . Terminals 5 | . 5 . Fabricators . | . . . Repair Stations . | . . . Recycling Units . | . . . Scanalyzers . | . . . Garrison Access . | . . . Total Hacks 14 | . 14 . Successful 6 | . 6 . Failed 8 | . 8 . Catastrophic 1 | . 1 . Database Lockouts . | . . . Manual 7 | . 7 . Terminals 14 | . 14 . Fabricators . | . . . Repair Stations . | . . . Recycling Units . | . . . Scanalyzers . | . . . Garrison Access . | . . . Terminal Hacks 6 | . 6 . Prototype ID Bank 4 | . 4 . Alert Level 1 | . 1 . Unreport Threat 1 | . 1 . Fabricator Hacks . | . . . Repair Station Hacks . | . . . Recycling Unit Hacks . | . . . Scanalyzer . | . . . Garrison Access Hacks . | . . . Unauthorized Hacks . | . . . Terminals . | . . . Fabricators . | . . . Repair Stations . | . . . Recycling Units . | . . . Scanalyzers . | . . . Garrison Access . | . . . Data Cores Recovered . | . . . Used . | . . . Hacking Detections 5 | . 5 . Full Trace Events . | . . . Feedback Events . | . . . Feedback Blocked . | . . . Robot Schematics Acquired . | . . . Robots Built . | . . . Authchips . | . . . Time . | . . . Total Robot Build Rating . | . . . Part Schematics Acquired . | . . . Parts Built . | . . . Authchips . | . . . Time . | . . . Total Part Build Rating . | . . . Parts Repaired . | . . . Time . | . . . Parts Recycled . | . . . Recycled Matter . | . . . Retrieved Matter . | . . . Retrieved Components . | . . . Parts Scanalyzed . | . . . Part Schematics Acquired . | . . . Parts Damaged . | . . . Bothacking | -11 -10 -10 ------------ Run | Yrd Mat Min Used RIF Installer . | . . . Robots Hacked . | . . . Non-combat . | . . . Combat . | . . . Robot Hacks Applied . | . . . Relay Couplers Released . | . . . Fabnet Peak Effective % . | . . . Robots Rewired . | . . . Allies Hacked . | . . . Hacks Repelled . | . . . Allies | -11 -10 -10 -------- Run | Yrd Mat Min Total Allies . | . . . Largest Group . | . . . Highest-Rated Group . | . . . Highest-Rated Ally . | . . . Total Orders . | . . . Ally Attacks . | . . . Total Damage . | . . . Kills . | . . . Allies Corrupted . | . . . Allies Melted . | . . . Intel | -11 -10 -10 ------- Run | Yrd Mat Min Robot Analysis Total . | . . . Derelict Logs Recovered . | . . . Drone Launches . | . . . Drone Recoveries . | . . . Exploration | -11 -10 -10 ------------- Run | Yrd Mat Min Turns Passed 1575 | 69 1242 264 Spaces Moved 731 | 37 592 102 Core 14 | 14 . . Treads 717 | 23 592 102 Legs . | . . . Wheels . | . . . Hover . | . . . Flight . | . . . Fastest Speed 50 | 50 160 240 Average Speed 188 | 152 181 240 Slowest Speed 240 | 200 240 240 Overloaded Moves . | . . . Propulsion Burnouts . | . . . Robots Hopped . | . . . Cave-ins Triggered . | . . . Exploration Rate (%) 39 | 3 92 24 Regions Visited 2 Branch Regions 1 Pre-discovered Areas . | . . . Known Exits Taken . | . . . Unknown Exits Taken 2 | 1 1 . Scrap Searched . | . . . Spaces Dug . | . . . Terrain Destroyed . | . . . Melee . | . . . Projectile . | . . . AOE . | . . . Terrain Rammed . | . . . Walls Destroyed . | . . . Machines Disabled . | . . . Actions | -11 -10 -10 --------- Run | Yrd Mat Min Total 874 | 47 716 111 Wait 56 | . 55 1 Move 729 | 36 591 102 Hop . | . . . Pick Up 25 | 5 20 . Fast Attach 9 | 5 4 . Attach 4 | 1 . 3 Detach 2 | . 2 . Swap 6 | . 6 . Drop 14 | . 14 . Fire 29 | . 24 5 Melee . | . . . Ram . | . . . Kick . | . . . Crush . | . . . Escape Stasis . | . . . Rewire . | . . . Trap . | . . . Miscellaneous . | . . . Route ------- -11/Scrapyard -10/Materials (discovered 4 exits: [*Mat x3] / [*Min]) -10/Mines History --------- Turn | Location | Event 2 | -11/Scrapyard | Met Revision 17 29 | -11/Scrapyard | Discovered new exit (range 15) 70 | -11/Scrapyard | Entered Materials 140 | -10/Materials | Discovered new exit (range 7) 227 | -10/Materials | Discovered new exit (range 10) 303 | -10/Materials | Build established: Mutant 507 | -10/Materials | Discovered new exit (range 5) 1154 | -10/Materials | Discovered new exit (range 4) 1312 | -10/Materials | Entered Mines 1502 | -10/Mines | Assembled infested the area 1565 | -10/Mines | Core integrity fell below 50% 1569 | -10/Mines | Core integrity fell below 20% 1576 | -10/Mines | Destroyed by D-53 Grenadier with Mini Grenade Launcher Last Messages --------------- 01495_ K-01 Serf collects debris. 01502_ ALERT: Infestation in the mines, dispatching Demolisher response squad. 01502_ K-01 Serf collects debris. 01544_ C-30 ARC bursts open, deploying its payload. 01544_ D-53 Grenadier unfolds itself. 01562_ Particle Gun destroyed. 01564_ Heat Sink destroyed. 01569_ The unstable cave ceiling collapses. 01569_ U-05 Engineer lays Concrete. 01570_ Shotgun destroyed. 01570_ U-05 Engineer destroyed. 01570_ Seismic Survey Station disabled. 01571_ U-05 Engineer builds a Wall. 01572_ Ion Engine destroyed. 01574_ The unstable cave ceiling collapses. 01574_ D-53 Grenadier destroyed. 01574_ U-05 Engineer lays Concrete. 01575_ The unstable cave ceiling collapses. 01575_ U-05 Engineer builds a Wall. Map ----- +----------------------------------------------------+ | ?????????????????????????????????????????????????? | | ?????????????????????????????????????????????????? | | ?????????????????????????????????????????????????? | | ?????????????????????????????????????????????????? | | ?????????????????????????????????????????????????? | | ?????????????????????????????????????????????????? | | ?????????????????????????????????????????????????? | | ?????????????????????????????????????????????????? | | ?????????????????????????????????????????????????? | | ?????????????????????????????????????????????????? | | ?????????????????????????????????????????????????? | | ?????????????????????????????????????????????????? | | ????????????????????##???????????????????????????? | | ???????????????????## ???????????????????????????? | | ???????????????????? #??????????????????????????? | | ????????????????????# #?????????????????????????? | | ???????????????????## #????????????????????????? | | ???????????????????# ###?????????????????????? | | ??????????????????## ##????????????????????? | | ??????????????????# #????????????????????? | | ??????????????????# ######???????????????? | | ??????????????????# #???????????????? | | ?????????????# #### ###?????????????? | | ?????????????? r%r ## #??????????? | | ?????????????????## ## #??????????? | | ?????????????????# @ u #??????????? | | ?????????????????# "" d # ##??????????? | | ?????? ????????# "" # #???????????? | | ?????? ###### """ # ###?????????????? | | ?????? ! ####???????????????? | | ?????? ##### ##????????????????? | | ??????????######### ##???# #???????#####????? | | ????????????????## ##????# #??????## ##???? | | ???????????????## ##?????# ##?????## #???? | | ?????????####### #??????# ###??????# #???? | | ?????????# #??????# #???????## ##???? | | ?????????# "## #??????# #??????## ##????? | | ?????????# ???# #??????# #?????## #######? | | ??????????????## ##??????# #????## ## #? | | ???????????????#####???????# #???## """ ## ## #? | | ???????????????????????????# #??## """ ## ## #? | | ???????????????????????????# #?## """ ## ## | | ???????????????????????????# ### # # | | ???????????????????????????# ##### | | ???????????????????????????##### ##???# | | ???????????????????????????????# ##????# | | ??????????????????????????????## ##?????## | | ??????????????????????????????# ##???????## | | ??????????????????????????????# ##??????????### | | ??????????????????????????????## ##?????????????? | +----------------------------------------------------+ Best States ------------- Heat Dissipation 35 Energy Generation 10 Energy Capacity 250 Matter Stores 300 Matter Capacity 300 Sight Range 16 Terrain Scan Density 10 Evasion (%) 40 Recoil Reduction 2 Item Schematics ----------------- None Robot Schematics ------------------ None Fabricated ------------ Nothing Alien Tech Used ----------------- None Achievements -------------- None Challenges ------------ None Game ------ Seed VortexForceCore Manual? 0 Play Time 00:09:21 Cumulative 69.6 hours Start 2024.04.20 @ 19:01:00 End 2024.04.20 @ 19:09:48 Sessions 1 Manual Loads 0 Difficulty Rogue Special Mode None Game No. 67 Rogue 67 Adventurer 0 Explorer 0 Win Type - Total 6 Types 5/0/1/0/0/0/0/0/0 Lore% 47 Gallery% 40 Achievement% 41 Wizard Run 0 Options --------- Layout 0 ASCII 0 Keyboard 1 Movement Vi Keybinds 0 Fullscreen 2 Font 16/SmallcapsGlow Map View 64x51 Zoom Use 0% Tactical HUD 1 Map Filters NONE Filters NONE Steam X RUN: 7161309b-f45d-493b-976f-e8da3f6a159c